bitfinex/quotes_BTCUSD_20240617
["timestamp","ask_amount","ask_price","bid_price","bid_amount"]
[1718597404830,0.00089092,66235.0,66234.0,2.22604527]
[1718597405319,0.00089092,66235.0,66234.0,2.17544527]
[1718597405541,0.00089092,66235.0,66234.0,2.21204527]
[1718597405750,0.00089092,66235.0,66234.0,2.22604527]
[1718597405970,0.00089092,66235.0,66234.0,2.21204527]
[1718597406611,0.04964938,66249.0,66248.0,0.60379]
[1718597406894,0.04964938,66249.0,66248.0,1.02200107]
[1718597407100,0.00543761,66249.0,66248.0,1.64867958]
[1718597407309,0.07604389,66260.0,66259.0,0.362214]
[1718597407521,0.22381365,66262.0,66261.0,0.120734]
[1718597407726,0.17419401,66262.0,66261.0,0.120734]
[1718597409058,0.12419401,66262.0,66261.0,0.120734]
[1718597409263,0.17419401,66262.0,66261.0,0.124734]
[1718597409474,0.12419401,66262.0,66261.0,0.124734]
[1718597409673,0.12419401,66262.0,66261.0,0.371203]
[1718597409883,0.12419401,66262.0,66261.0,0.612672]
[1718597410319,0.00939401,66262.0,66261.0,1.00622879]
[1718597410547,0.37782601,66262.0,66261.0,0.13424227]
[1718597410750,0.25709401,66262.0,66261.0,0.009]
[1718597411571,0.26181608,66262.0,66261.0,0.009]
[1718597411814,0.21121608,66262.0,66261.0,0.005]
[1718597412004,0.26181608,66262.0,66261.0,0.005]
[1718597412215,0.26181608,66262.0,66261.0,0.009]
[1718597412651,0.26181608,66262.0,66261.0,0.008]
[1718597412895,0.21121608,66262.0,66261.0,0.014]
[1718597413124,0.26181608,66262.0,66261.0,0.014]
[1718597413350,0.26181608,66262.0,66261.0,0.022]
[1718597413572,0.26145174,66262.0,66261.0,0.022]
[1718597414234,1.08511374,66262.0,66261.0,0.022]
[1718597414497,1.32657874,66262.0,66261.0,0.022]
[1718597414944,0.84364874,66262.0,66261.0,0.022]
[1718597415386,0.84364874,66262.0,66261.0,0.016]
[1718597415617,0.17074,66258.0,66251.0,0.120752]
[1718597415914,0.2073,66253.0,66248.0,0.52381597]
[1718597416149,0.1506,66254.0,66248.0,0.52381597]
[1718597416150,0.120755,66250.0,66248.0,0.4787]
[1718597416379,0.00459759,66252.0,66249.0,0.15208779]
[1718597416615,0.05,66259.0,66256.0,0.241485]
[1718597416858,0.05,66259.0,66258.0,0.12074]
[1718597417315,0.05,66259.0,66256.0,0.362228]
[1718597417788,0.05,66259.0,66257.0,0.120741]
[1718597418633,0.05,66259.0,66258.0,0.12074]
[1718597419566,0.05,66259.0,66256.0,0.120743]
[1718597419818,0.05,66259.0,66258.0,0.006]
[1718597420658,0.05,66259.0,66258.0,0.014]
[1718597421300,0.05,66259.0,66258.0,0.008]
[1718597422615,0.00902967,66262.0,66261.0,0.362203]
[1718597422820,0.00902967,66262.0,66261.0,0.603672]
[1718597423029,0.00902967,66262.0,66261.0,0.72891976]
[1718597423481,0.00902967,66262.0,66261.0,0.99722879]
[1718597423684,0.00902967,66262.0,66261.0,1.08749578]
[1718597423889,0.00902967,66262.0,66261.0,1.13258078]
[1718597424300,0.00902967,66262.0,66261.0,1.09749578]
[1718597425581,0.00902967,66262.0,66261.0,1.10149578]
[1718597426014,0.00902967,66262.0,66261.0,1.11549578]
[1718597426221,0.00902967,66262.0,66261.0,1.10149578]
[1718597426609,0.00902967,66262.0,66261.0,1.02639578]
[1718597426819,0.00902967,66262.0,66261.0,0.66752678]
[1718597427283,0.33186167,66262.0,66261.0,0.15323599]
[1718597427502,0.21112967,66262.0,66261.0,0.15323599]
[1718597427716,0.21576408,66262.0,66261.0,0.15323599]
[1718597428352,0.45722908,66262.0,66261.0,0.15323599]
[1718597428598,0.57796108,66262.0,66261.0,0.15323599]
[1718597428853,0.33649608,66262.0,66261.0,0.15323599]
[1718597429269,0.21576408,66262.0,66261.0,0.15323599]
[1718597430711,0.45649608,66262.0,66261.0,0.215857]
[1718597431149,0.21576408,66262.0,66261.0,0.215857]
[1718597431591,0.21735252,66262.0,66261.0,0.215857]
[1718597431807,0.21735252,66262.0,66261.0,0.336591]
[1718597432858,0.21735252,66262.0,66261.0,0.215857]
[1718597433256,0.01525252,66262.0,66261.0,0.457326]
[1718597433457,0.00902967,66262.0,66261.0,0.336591]
[1718597433675,0.01525252,66262.0,66261.0,0.336591]
[1718597436314,0.01525252,66262.0,66261.0,0.33659574]
[1718597437287,0.01525252,66262.0,66261.0,0.21671174]
[1718597437507,0.13525252,66262.0,66261.0,0.21671174]
[1718597437917,0.11525252,66262.0,66261.0,0.21671174]
[1718597439395,0.25598452,66262.0,66261.0,0.21671174]
[1718597439601,0.34948452,66262.0,66261.0,0.21671174]
[1718597441892,0.34948452,66262.0,66261.0,0.21672276]
[1718597442760,0.59094952,66262.0,66261.0,0.21672276]
[1718597443401,0.59094952,66262.0,66261.0,0.26186323]
[1718597443853,0.57094952,66262.0,66261.0,0.26186397]
[1718597444343,0.59094952,66262.0,66261.0,0.26186397]
[1718597444608,0.59094952,66262.0,66261.0,0.2167235]
[1718597445133,0.70544952,66262.0,66261.0,0.2167235]
[1718597445385,0.70544952,66262.0,66261.0,0.28443421]
[1718597446529,0.70544952,66262.0,66261.0,0.15409925]
[1718597446711,0.70544952,66262.0,66261.0,0.21672553]
[1718597448318,0.70544952,66262.0,66261.0,0.28443624]
[1718597449570,0.70544952,66262.0,66261.0,0.21672553]
[1718597450192,0.70544952,66262.0,66261.0,0.28456164]
[1718597450394,0.70544952,66262.0,66261.0,0.21672553]
[1718597450796,0.70544952,66262.0,66261.0,0.22194206]
[1718597451141,1.18837952,66262.0,66261.0,0.22194206]
[1718597451332,1.18837952,66262.0,66261.0,0.28456856]
[1718597452000,1.18837952,66262.0,66261.0,0.27056856]
[1718597452225,1.18837952,66262.0,66261.0,0.27556856]
[1718597452701,0.92691452,66262.0,66261.0,0.27556856]
[1718597452917,0.97751452,66262.0,66261.0,0.28400669]
[1718597453133,0.97751452,66262.0,66261.0,0.29100669]
[1718597453355,0.22325252,66262.0,66261.0,0.29100669]
[1718597453577,0.06585252,66262.0,66261.0,0.31357693]
[1718597453833,0.06585252,66262.0,66261.0,0.20072575]
[1718597454081,0.06585252,66262.0,66261.0,0.31380304]
[1718597454082,0.16585252,66262.0,66261.0,0.31380304]
[1718597454314,0.52804952,66262.0,66261.0,0.31379943]
[1718597454544,0.01525252,66262.0,66261.0,0.31379943]
[1718597454766,0.01525252,66262.0,66261.0,0.64073343]
[1718597455025,0.01525252,66262.0,66261.0,0.76912514]
[1718597455231,0.01525252,66262.0,66261.0,0.52765614]
[1718597455449,0.00902967,66262.0,66261.0,0.52765614]
[1718597455674,0.00902967,66262.0,66261.0,0.40692214]
[1718597455885,0.0152551,66262.0,66261.0,0.40692214]
[1718597456101,0.0152551,66262.0,66261.0,0.40192214]
[1718597456375,0.0152551,66262.0,66261.0,0.41592214]
[1718597456594,0.0152551,66262.0,66261.0,0.40892214]
[1718597456801,0.0152551,66262.0,66261.0,0.42292214]
[1718597457239,0.0152551,66262.0,66261.0,0.40892214]
[1718597457448,0.0152551,66262.0,66261.0,0.42292214]
[1718597457898,0.0152551,66262.0,66261.0,0.40892214]
[1718597458122,0.0152551,66262.0,66261.0,0.42292214]
[1718597458551,0.0152551,66262.0,66261.0,0.40892214]
[1718597458991,0.0152551,66262.0,66261.0,0.42452214]
[1718597459250,0.0152551,66262.0,66261.0,0.54525614]
[1718597459475,0.0152551,66262.0,66261.0,0.42452214]
[1718597460552,0.0152551,66262.0,66261.0,0.54525614]
[1718597461434,0.0152551,66262.0,66261.0,1.02819414]
[1718597461614,0.0152551,66262.0,66261.0,0.96181293]
[1718597461895,0.00902967,66262.0,66261.0,1.33870335]
[1718597462303,0.00902967,66262.0,66261.0,1.20326209]
[1718597462510,0.00902967,66262.0,66261.0,0.59959009]
[1718597462943,0.0152595,66262.0,66261.0,0.59959009]
[1718597463169,0.1359915,66262.0,66261.0,0.2157023]
[1718597463383,0.3979915,66262.0,66261.0,0.2157023]
[1718597463600,0.7284565,66262.0,66261.0,0.2157023]
[1718597464008,0.7284565,66262.0,66261.0,0.32880127]
[1718597464225,0.4869915,66262.0,66261.0,0.32880127]
[1718597464642,0.4869915,66262.0,66261.0,0.2157023]
[1718597464870,0.5069915,66262.0,66261.0,0.2157023]
[1718597465080,0.9899215,66262.0,66261.0,0.32880674]
[1718597465311,0.9899215,66262.0,66261.0,0.2157023]
[1718597465520,0.7484565,66262.0,66261.0,0.2157023]
[1718597467279,0.7484565,66262.0,66261.0,0.32880674]
[1718597468242,0.7284565,66262.0,66261.0,0.20357187]
[1718597468403,0.7484565,66262.0,66261.0,0.21571754]
[1718597470044,0.6978565,66262.0,66261.0,0.21571754]
[1718597470375,0.7484565,66262.0,66261.0,0.21571737]
[1718597471649,0.7484565,66262.0,66261.0,0.21571771]
[1718597471786,0.9899215,66262.0,66261.0,0.21571771]
[1718597472025,0.9899215,66262.0,66261.0,0.20815771]
[1718597472617,0.9899215,66262.0,66261.0,0.14554028]
[1718597472824,0.7484565,66262.0,66261.0,0.02029]
[1718597473029,0.9899215,66262.0,66261.0,0.02029]
[1718597473332,1.0399215,66262.0,66261.0,0.02029]
[1718597473742,1.0899215,66262.0,66261.0,0.02029]
[1718597474196,1.0899215,66262.0,66261.0,0.00729]
[1718597474360,0.12,66252.0,66248.0,0.4787]
[1718597474539,0.240751,66252.0,66251.0,0.189941]
[1718597474717,0.12620688,66252.0,66251.0,0.189941]
[1718597475496,0.12620688,66252.0,66251.0,0.203941]
[1718597476190,0.00620688,66252.0,66251.0,0.203941]
[1718597476405,0.00620688,66252.0,66251.0,0.20394117]
[1718597477821,0.00620688,66252.0,66251.0,0.21794117]
[1718597478236,0.48845988,66252.0,66251.0,0.21794153]
[1718597478452,0.48845988,66252.0,66251.0,0.23627397]
[1718597479093,0.48845988,66252.0,66251.0,0.34936816]
[1718597479290,0.48845988,66252.0,66251.0,0.23627397]
[1718597480582,0.00620688,66252.0,66251.0,0.23627397]
[1718597480799,0.29830888,66252.0,66251.0,0.23627397]
[1718597481009,0.17755788,66252.0,66251.0,0.23627397]
[1718597481210,0.17755788,66252.0,66251.0,0.3493393]
[1718597481431,0.17755788,66252.0,66251.0,0.23627397]
[1718597481932,0.12695788,66252.0,66251.0,0.23627397]
[1718597482120,0.12695788,66252.0,66251.0,0.34933547]
[1718597485013,0.12695788,66252.0,66251.0,0.34933548]
[1718597486007,0.22695788,66252.0,66251.0,0.34933548]
[1718597487817,0.24695788,66252.0,66251.0,0.34933548]
[1718597490151,0.12695788,66252.0,66251.0,0.34933548]
[1718597490473,0.12695788,66252.0,66251.0,0.23627398]
[1718597491394,0.12695788,66252.0,66251.0,0.17364268]
[1718597491593,0.22695788,66252.0,66251.0,0.23627557]
[1718597491825,0.24695788,66252.0,66251.0,0.23627557]
[1718597492034,0.48845988,66252.0,66251.0,0.23627557]
[1718597493091,0.48845988,66252.0,66251.0,0.3040988]
[1718597494147,0.53905988,66252.0,66251.0,0.3040988]
[1718597495029,0.53905988,66252.0,66251.0,0.23627557]
[1718597495491,0.48845988,66252.0,66251.0,0.23627557]
[1718597495736,0.53905988,66252.0,66251.0,0.23627557]
[1718597496184,0.78056188,66252.0,66251.0,0.23627557]
[1718597496404,0.78056188,66252.0,66251.0,0.17364374]
[1718597496405,0.98666188,66252.0,66251.0,0.17364374]
[1718597497076,0.98666188,66252.0,66251.0,0.15964374]
[1718597497550,0.98666188,66252.0,66251.0,0.15264374]
[1718597497767,0.98666188,66252.0,66251.0,0.16064374]
[1718597497993,0.98666188,66252.0,66251.0,0.1536538]
[1718597497994,0.98766188,66252.0,66251.0,0.1536538]
[1718597498216,0.98766188,66252.0,66251.0,0.1506538]
[1718597498442,0.98866188,66252.0,66251.0,0.13832136]
[1718597499361,0.98866188,66252.0,66251.0,0.1383214]
[1718597501070,0.98866188,66252.0,66251.0,0.1391714]
[1718597502110,0.98866188,66252.0,66251.0,0.20180829]
[1718597503173,0.98866188,66252.0,66251.0,0.20180828]
[1718597509267,0.98866188,66252.0,66251.0,0.2470109]
[1718597509486,0.98866188,66252.0,66251.0,0.20180828]
[1718597509686,0.98866188,66252.0,66251.0,0.24702517]
[1718597510226,0.98036088,66252.0,66251.0,0.24702519]
[1718597511837,0.98036088,66252.0,66251.0,0.01389763]
[1718597512007,0.98036088,66252.0,66251.0,0.18439422]
[1718597512211,0.98036088,66252.0,66251.0,0.24703111]
[1718597512632,0.89286088,66252.0,66251.0,0.24703111]
[1718597512870,0.89286088,66252.0,66251.0,0.18439422]
[1718597513077,0.89286088,66252.0,66251.0,0.24703111]
[1718597513237,0.89286088,66252.0,66251.0,0.20180831]
[1718597513651,0.88286088,66252.0,66251.0,0.20180831]
[1718597513869,0.12065688,66252.0,66251.0,0.26964252]
[1718597514099,0.12065688,66252.0,66251.0,0.20180831]
[1718597514100,0.00820688,66252.0,66251.0,0.20180831]
[1718597514304,0.00820688,66252.0,66251.0,0.52456031]
[1718597514543,0.002,66252.0,66251.0,0.51686533]
[1718597514766,0.002,66252.0,66251.0,0.40380831]
[1718597515008,0.00820219,66252.0,66251.0,0.40380831]
[1718597515727,0.00820219,66252.0,66251.0,0.87912233]
[1718597515945,0.00820219,66252.0,66251.0,1.4011631]
[1718597516170,0.002,66252.0,66251.0,1.4011631]
[1718597516381,0.002,66252.0,66251.0,1.1596581]
[1718597516841,0.002,66252.0,66251.0,1.61043152]
[1718597517090,0.002,66252.0,66251.0,1.24638004]
[1718597517289,0.002,66252.0,66251.0,1.48788504]
[1718597517560,0.002,66252.0,66251.0,1.28185242]
[1718597517808,0.002,66252.0,66251.0,1.2463411]
[1718597518236,0.002,66252.0,66251.0,1.4878461]
[1718597518444,0.00093501,66261.0,66260.0,0.322736]
[1718597518650,0.00093501,66261.0,66260.0,0.5106092]
[1718597518867,0.00715729,66261.0,66260.0,0.5106092]
[1718597519069,0.00715729,66261.0,66260.0,0.62369903]
[1718597519269,0.00715729,66261.0,66260.0,0.5106092]
[1718597519270,0.00093501,66261.0,66260.0,0.5106092]
[1718597519384,0.00093501,66261.0,66260.0,0.51060881]
[1718597519837,0.00093501,66261.0,66260.0,0.52260881]
[1718597520099,0.00093501,66261.0,66260.0,0.53360881]
[1718597520317,0.00093501,66261.0,66260.0,0.33160881]
[1718597520742,0.00715729,66261.0,66260.0,0.33160881]
[1718597521360,0.00715729,66261.0,66260.0,0.34560881]
[1718597521559,0.00715729,66261.0,66260.0,0.33460881]
[1718597521782,0.00715729,66261.0,66260.0,0.30860881]
[1718597521994,0.00715729,66261.0,66260.0,0.33660881]
[1718597522205,0.00715729,66261.0,66260.0,0.42704658]
[1718597522423,0.00715729,66261.0,66260.0,0.2737981]
[1718597522640,0.00715729,66261.0,66260.0,0.32260801]
[1718597522846,0.00715729,66261.0,66260.0,0.33560801]
[1718597524190,0.00715729,66261.0,66260.0,0.42603409]
[1718597524421,0.00715729,66261.0,66260.0,0.30529809]
[1718597524634,0.24789129,66261.0,66260.0,0.21487201]
[1718597524846,0.48936029,66261.0,66260.0,0.21487201]
[1718597525256,0.48936029,66261.0,66260.0,0.15224812]
[1718597525257,0.24789129,66261.0,66260.0,0.15224812]
[1718597525475,0.24789129,66261.0,66260.0,0.21487321]
[1718597525684,0.12715729,66261.0,66260.0,0.21487336]
[1718597525891,0.00715729,66261.0,66260.0,0.21487336]
[1718597526137,0.00715729,66261.0,66260.0,0.15224812]
[1718597526354,0.12715729,66261.0,66260.0,0.21487309]
[1718597526599,0.12715729,66261.0,66260.0,0.28267842]
[1718597526600,0.73082929,66261.0,66260.0,0.28267842]
[1718597526780,0.73082929,66261.0,66260.0,0.027]
[1718597526781,0.93712929,66261.0,66260.0,0.027]
[1718597526954,0.74566029,66261.0,66260.0,0.027]
[1718597527885,0.74566029,66261.0,66260.0,0.013]
[1718597528266,0.74566029,66261.0,66257.0,0.04520377]
[1718597528267,0.48222,66258.0,66257.0,0.04520377]
[1718597528471,0.29134,66258.0,66257.0,0.17046486]
[1718597528716,0.29755724,66258.0,66257.0,0.17046486]
[1718597528925,0.53903724,66258.0,66257.0,0.17046486]
[1718597529275,0.482224,66257.0,66256.0,0.04520377]
[1718597529491,0.240743,66256.0,66255.0,0.04520377]
[1718597529654,0.53283,66256.0,66255.0,0.17046791]
[1718597529877,0.53904388,66256.0,66255.0,0.04520377]
[1718597530302,0.53904388,66256.0,66255.0,0.17046912]
[1718597531636,0.98463088,66256.0,66255.0,0.17046912]
[1718597531820,1.32611788,66256.0,66255.0,0.17046912]
[1718597532024,1.32611788,66256.0,66251.0,0.09331139]
[1718597532025,0.823755,66252.0,66251.0,0.0481014]
[1718597532240,1.32675606,66252.0,66251.0,0.00289763]
[1718597533086,1.31919606,66252.0,66251.0,0.00289763]
[1718597533576,1.32919606,66252.0,66251.0,0.00289763]
[1718597533726,1.31919606,66252.0,66251.0,0.00289763]
[1718597534697,1.32119606,66252.0,66251.0,0.00289763]
[1718597535103,1.33119606,66252.0,66251.0,0.00289763]
[1718597535349,0.58489206,66252.0,66251.0,0.00289763]
[1718597535584,0.63549206,66252.0,66251.0,0.00289763]
[1718597535811,0.27323906,66252.0,66251.0,0.00289763]
[1718597536024,0.39399006,66252.0,66251.0,0.00289763]
[1718597536260,0.87699406,66252.0,66251.0,0.00289763]
[1718597536477,0.87499406,66252.0,66251.0,0.00289763]
[1718597536672,0.63349206,66252.0,66251.0,0.00289763]
[1718597537438,0.31939006,66252.0,66251.0,0.00289763]
[1718597537666,0.33999006,66252.0,66251.0,0.00589763]
[1718597537875,0.38999006,66252.0,66251.0,0.00889763]
[1718597538278,1.07469406,66252.0,66251.0,0.00289763]
[1718597538474,1.07469406,66252.0,66251.0,0.00789763]
[1718597538752,1.31619606,66252.0,66251.0,0.00689763]
[1718597539024,1.31619606,66252.0,66251.0,0.00289763]
[1718597539226,1.07469406,66252.0,66251.0,0.00589763]
[1718597539421,1.07469406,66252.0,66251.0,0.00889763]
[1718597539625,1.02409406,66252.0,66251.0,0.00889763]
[1718597539854,1.07469406,66252.0,66251.0,0.01189763]
[1718597541041,1.07469406,66252.0,66251.0,0.00289763]
[1718597541243,1.02409406,66252.0,66251.0,0.00289763]
[1718597541448,1.02409406,66252.0,66251.0,0.00689763]
[1718597541449,1.07469406,66252.0,66251.0,0.00689763]
[1718597541664,1.07469406,66252.0,66251.0,0.00489763]
[1718597541873,1.07469406,66252.0,66251.0,0.00289763]
[1718597542067,1.07469406,66252.0,66251.0,0.00389763]
[1718597542274,1.08469406,66252.0,66251.0,0.00489763]
[1718597542705,1.58684676,66252.0,66251.0,0.00489763]
[1718597542959,1.68684676,66252.0,66251.0,0.00489763]
[1718597543318,1.57828385,66252.0,66251.0,0.00489763]
[1718597543926,1.57828385,66252.0,66251.0,0.00389763]
[1718597544125,1.57828385,66252.0,66251.0,0.00489763]
[1718597544326,1.57828385,66252.0,66251.0,0.00389763]
[1718597544687,1.57828385,66252.0,66251.0,0.00289763]
[1718597545008,1.73337164,66252.0,66251.0,0.00389763]
[1718597545218,1.73537164,66252.0,66251.0,0.00489763]
[1718597545669,1.58328385,66252.0,66251.0,0.00489763]
[1718597548338,1.82478585,66252.0,66251.0,0.00489763]
[1718597549577,1.77418585,66252.0,66251.0,0.00489763]
[1718597549778,1.82478585,66252.0,66251.0,0.00489763]
[1718597550579,1.53268385,66252.0,66251.0,0.00489763]
[1718597550794,1.58328385,66252.0,66251.0,0.00489763]
[1718597551002,1.89192735,66252.0,66251.0,0.00489763]
[1718597551199,1.17969406,66252.0,66251.0,0.00489763]
[1718597551410,0.58589206,66252.0,66251.0,0.00489763]
[1718597551606,0.61649206,66252.0,66251.0,0.00489763]
[1718597551815,0.63649206,66252.0,66251.0,0.00489763]
[1718597552437,0.63449206,66252.0,66251.0,0.00389763]
[1718597552684,0.87599406,66252.0,66251.0,0.00389763]
[1718597552933,0.87599406,66252.0,66251.0,0.00489763]
[1718597553096,0.87599406,66252.0,66251.0,0.00389763]
[1718597553657,0.87599406,66252.0,66251.0,0.00289763]
[1718597553658,0.87299406,66252.0,66251.0,0.00289763]
[1718597554131,0.87299406,66252.0,66251.0,0.00389763]
[1718597554340,0.58089206,66252.0,66251.0,0.00389763]
[1718597554542,0.63149206,66252.0,66251.0,0.00489763]
[1718597554800,0.05619906,66252.0,66251.0,0.24640263]
[1718597555011,0.00619906,66252.0,66251.0,1.10171579]
[1718597555168,0.00619906,66252.0,66251.0,1.42885207]
[1718597555387,0.00093501,66256.0,66251.0,1.42885207]
[1718597555388,0.00093501,66256.0,66255.0,0.362236]
[1718597555551,0.00093501,66256.0,66255.0,0.74742379]
[1718597555748,0.00093501,66256.0,66255.0,1.50850842]
[1718597556030,0.00093501,66256.0,66255.0,1.41830544]
[1718597556164,0.00093501,66256.0,66255.0,1.41829376]
[1718597556377,0.00093501,66256.0,66255.0,1.50847901]
[1718597556803,0.00093501,66256.0,66255.0,1.41829376]
[1718597557230,0.00093501,66256.0,66255.0,1.50847007]
[1718597557436,0.00093501,66256.0,66255.0,1.41829376]
[1718597557952,0.00093501,66256.0,66255.0,1.50846385]
[1718597558137,0.00093501,66256.0,66255.0,1.43229376]
[1718597558552,0.00093501,66256.0,66255.0,1.44629376]
[1718597558756,0.00093501,66256.0,66255.0,1.41825588]
[1718597559201,0.00093501,66256.0,66255.0,1.53225588]
[1718597559459,0.00093501,66256.0,66255.0,1.51825588]
[1718597559799,0.00093501,66256.0,66255.0,1.53225588]
[1718597559999,0.00093501,66256.0,66255.0,1.54625588]
[1718597560433,0.00093501,66256.0,66255.0,1.65889704]
[1718597560622,0.00093501,66256.0,66255.0,1.64489704]
[1718597560824,0.00093501,66256.0,66255.0,1.65889704]
[1718597561199,0.00093501,66256.0,66255.0,1.63635764]
[1718597561406,0.00093501,66256.0,66255.0,1.60835764]
[1718597561608,0.00093501,66256.0,66255.0,1.62235764]
[1718597562265,0.00093501,66256.0,66255.0,1.63635764]
[1718597562470,0.00093501,66256.0,66255.0,1.39486664]
[1718597562680,0.00093501,66256.0,66255.0,1.13084333]
[1718597562926,0.00093501,66256.0,66255.0,1.10832142]
[1718597563109,0.00093501,66256.0,66255.0,1.29076488]
[1718597563318,0.00093501,66256.0,66255.0,1.53225588]
[1718597563470,0.00093501,66256.0,66255.0,1.54625588]
[1718597563873,0.00093501,66256.0,66255.0,1.53225588]
[1718597564306,0.00093501,66256.0,66255.0,1.63635764]
[1718597564540,0.00093501,66256.0,66255.0,1.53225588]
[1718597565226,0.00093501,66256.0,66255.0,0.70103788]
[1718597565437,0.00093501,66256.0,66255.0,1.07727388]
[1718597565656,0.00093501,66256.0,66255.0,0.22985009]
[1718597565866,1.0800034,66256.0,66255.0,0.042]
[1718597566076,1.33671812,66256.0,66255.0,0.042]
[1718597566277,1.83029291,66256.0,66255.0,0.042]
[1718597566697,1.83029291,66256.0,66255.0,0.028]
[1718597566902,1.83029291,66256.0,66255.0,0.042]
[1718597566903,1.81328152,66256.0,66255.0,0.042]
[1718597567324,1.81328152,66256.0,66255.0,0.028]
[1718597567476,0.957683,66253.0,66252.0,0.00085]
[1718597567717,1.067683,66253.0,66252.0,0.00085]
[1718597567883,1.12302226,66253.0,66252.0,0.00085]
[1718597568127,1.56660805,66253.0,66252.0,0.00085]
[1718597568334,1.77840805,66253.0,66252.0,0.00085]
[1718597568983,1.53691005,66253.0,66252.0,0.00085]
[1718597569684,1.53691005,66253.0,66252.0,0.00185]
[1718597569908,1.53991005,66253.0,66252.0,0.00185]
[1718597570321,1.53691005,66253.0,66252.0,0.00085]
[1718597570529,1.53991005,66253.0,66252.0,0.00185]
[1718597570755,1.54191005,66253.0,66252.0,0.00185]
[1718597571171,1.53991005,66253.0,66252.0,0.00185]
[1718597571397,1.54091005,66253.0,66252.0,0.00285]
[1718597574835,1.78240805,66253.0,66252.0,0.00285]
[1718597575242,1.93349584,66253.0,66252.0,0.00185]
[1718597575442,1.93349584,66253.0,66252.0,0.00285]
[1718597575670,1.93449584,66253.0,66252.0,0.00285]
[1718597575877,1.93149584,66253.0,66252.0,0.00185]
[1718597576088,1.93049584,66253.0,66252.0,0.00185]
[1718597576295,1.93249584,66253.0,66252.0,0.00185]
[1718597576727,1.93049584,66253.0,66252.0,0.00085]
[1718597576945,1.93049584,66253.0,66252.0,0.00185]
[1718597576946,1.93249584,66253.0,66252.0,0.00185]
[1718597577358,1.93349584,66253.0,66252.0,0.00285]
[1718597578011,1.95812369,66253.0,66252.0,0.00385]
[1718597581778,1.8060359,66253.0,66252.0,0.00385]
[1718597583459,1.5545379,66253.0,66252.0,0.00385]
[1718597583702,1.53091005,66253.0,66252.0,0.00385]
[1718597583940,1.43871005,66253.0,66252.0,0.00385]
[1718597584422,1.44671005,66253.0,66252.0,0.00185]
[1718597584640,1.44871005,66253.0,66252.0,0.00185]
[1718597585307,1.45071005,66253.0,66252.0,0.00185]
[1718597585541,1.44671005,66253.0,66252.0,0.00185]
[1718597585906,1.44871005,66253.0,66252.0,0.00285]
[1718597586277,1.44671005,66253.0,66252.0,0.00185]
[1718597586482,1.44871005,66253.0,66252.0,0.00185]
[1718597587154,1.44671005,66253.0,66252.0,0.00085]
[1718597587341,1.44471005,66253.0,66252.0,0.00085]
[1718597587495,1.44671005,66253.0,66252.0,0.00185]
[1718597587707,1.44871005,66253.0,66252.0,0.00285]
[1718597588076,1.44671005,66253.0,66252.0,0.00185]
[1718597588202,1.44771005,66253.0,66252.0,0.00285]
[1718597588426,1.43771005,66253.0,66252.0,0.00285]
[1718597588833,1.44771005,66253.0,66252.0,0.00285]
[1718597589031,0.68302626,66253.0,66252.0,0.00285]
[1718597589240,0.68102626,66253.0,66252.0,0.00185]
[1718597589448,0.92252426,66253.0,66252.0,0.00185]
[1718597589657,0.92252426,66253.0,66252.0,0.00285]
[1718597589658,0.92452426,66253.0,66252.0,0.00285]
[1718597589850,0.92452426,66253.0,66251.0,0.00289763]
[1718597589851,0.05,66245.0,66244.0,0.09247]
[1718597590053,0.14775187,66245.0,66244.0,0.09247]
[1718597590688,0.05531187,66245.0,66244.0,0.09247]
[1718597591424,0.05531187,66245.0,66244.0,0.10647]
[1718597591630,0.14775187,66245.0,66244.0,0.10647]
[1718597593045,0.05531187,66245.0,66244.0,0.10647]
[1718597593634,0.14775187,66245.0,66244.0,0.10647]
[1718597593833,0.16775187,66245.0,66244.0,0.10647]
[1718597595524,0.16775187,66245.0,66244.0,0.23175771]
[1718597597091,0.28851487,66245.0,66244.0,0.23175771]
[1718597597925,0.26851487,66245.0,66244.0,0.10647]
[1718597598129,0.17607487,66245.0,66244.0,0.10647]
[1718597598317,0.17607487,66245.0,66244.0,0.10732]
[1718597598929,0.26851487,66245.0,66244.0,0.10732]
[1718597599268,0.28851487,66245.0,66244.0,0.10732]
[1718597599580,0.33911487,66245.0,66244.0,0.10732]
[1718597600574,0.33911487,66245.0,66244.0,0.23260788]
[1718597601581,0.33911487,66245.0,66244.0,0.23260804]
[1718597604217,0.63064187,66245.0,66244.0,0.14013804]
[1718597604425,1.11369587,66245.0,66244.0,0.14013804]
[1718597604630,1.11369587,66245.0,66244.0,0.01485]
[1718597605006,1.11369587,66245.0,66244.0,0.00785]
[1718597605365,1.11369587,66245.0,66244.0,0.01385]
[1718597606333,1.11369587,66245.0,66244.0,0.00685]
[1718597606526,1.11369587,66245.0,66244.0,0.01185]
[1718597607689,1.11369587,66245.0,66244.0,0.00085]
[1718597608044,1.11369587,66245.0,66244.0,0.00185]
[1718597608677,1.31639587,66245.0,66244.0,0.00185]
[1718597610002,1.31739587,66245.0,66244.0,0.00185]
[1718597610662,1.31739587,66245.0,66244.0,0.00085]
[1718597611072,1.22419587,66245.0,66244.0,0.00085]
[1718597611282,1.11569587,66245.0,66244.0,0.00085]
[1718597611500,1.06509587,66245.0,66244.0,0.00085]
[1718597611713,0.10731187,66245.0,66244.0,0.00085]
[1718597611924,0.15791187,66245.0,66244.0,0.32414329]
[1718597612127,0.27867487,66245.0,66244.0,0.32414329]
[1718597612512,0.61264187,66245.0,66244.0,0.39172712]
[1718597612926,0.63264187,66245.0,66244.0,0.39172712]
[1718597613527,0.63264187,66245.0,66244.0,0.32414329]
[1718597613735,0.61264187,66245.0,66244.0,0.32414329]
[1718597613936,0.27867487,66245.0,66244.0,0.32414329]
[1718597614135,0.05731187,66245.0,66244.0,0.51249212]
[1718597614379,0.05731187,66245.0,66244.0,0.44490829]
[1718597614588,0.05731187,66245.0,66244.0,0.32414329]
[1718597614849,0.05731187,66245.0,66244.0,0.92797029]
[1718597615055,0.052,66245.0,66244.0,0.68643929]
[1718597615464,0.052,66245.0,66244.0,0.32414329]
[1718597615596,0.05727315,66245.0,66244.0,0.32414329]
[1718597615802,0.05627315,66245.0,66244.0,0.44490829]
[1718597616214,0.05627315,66245.0,66244.0,0.45190829]
[1718597617023,0.05527315,66245.0,66244.0,0.45190829]
[1718597617424,0.05527315,66245.0,66244.0,0.45890829]
[1718597617807,0.00527315,66245.0,66244.0,0.45890829]
[1718597618124,0.05,66245.0,66244.0,0.45890829]
[1718597618341,0.05527315,66245.0,66244.0,0.45890829]
[1718597618541,0.05527315,66245.0,66244.0,0.70043929]
[1718597619008,0.05,66245.0,66244.0,0.70043929]
[1718597619217,0.1006,66249.0,66248.0,0.120758]
[1718597619417,0.1006,66249.0,66248.0,0.33650615]
[1718597619611,0.10588701,66249.0,66248.0,0.33650615]